Cogmind - Beta 13 @@@ ROGUE MODE // 2024.04.01 @ 18:52:54 Player: Bean Result: Destroyed by Y-45 Defender with Heavy Assault Rifle Performance ------------- Evolutions (1) 500 Regions Visited (3) 600 Robots Destroyed (10) 50 Value Destroyed (277) 277 Prototype IDs (0) 0 Alien Tech Used (0) 0 Bonus (0) 0 TOTAL SCORE: 1427 Bonus ------- None Cogmind --------- Core Integrity 0/400 Matter 132/300 Energy 100/100 System Corruption 0% Temperature Cool (0) Movement Rolling (80) Location -9/Materials Parts ------- > --- POWER (1) -------- (None) > --- PROPULSION (2) --- Wheel > --- UTILITY (4) ------ Small Storage Unit Visual Processing Unit Signal Interpreter > --- WEAPON (2) ------- (None) > --- INVENTORY (8) ---- Light Ion Engine EMP Trap EMP Trap EMP Trap Peak State ------------ > --- POWER ------------ Ion Engine > --- PROPULSION ------- Aluminum Leg Aluminum Leg > --- UTILITY ---------- Small Storage Unit Visual Processing Unit Signal Interpreter > --- WEAPON ----------- Beam Cannon Rocket Launcher > --- INVENTORY -------- Assault Rifle EMP Trap EMP Trap EMP Trap EMP Trap [Rating: 10] Favorites ----------- Power Ion Engine Engine Ion Engine Propulsion Aluminum Leg Leg Aluminum Leg Wheel Wheel Utility Small Storage Unit Storage Small Storage Unit Processor Visual Processing Unit Weapon Medium Laser Energy Gun Medium Laser Energy Cannon Beam Cannon Ballistic Gun Assault Rifle Launcher Rocket Launcher Build | -11 -10 -10 -9 ------- Run | Yrd Mat Min Mat Slots Evolved 2 | . . . 2 Power . | . . . . Propulsion . | . . . . Utility 2 | . . . 2 Weapon . | . . . . Parts Attached 15 | 6 2 1 6 Power 1 | 1 . . . Engine 1 | 1 . . . Core . | . . . . Reactor . | . . . . Propulsion 3 | 2 . . 1 Treads . | . . . . Leg 2 | 2 . . . Wheel 1 | . . . 1 Hover . | . . . . Flight . | . . . . Utility 3 | 1 1 . 1 Device . | . . . . Storage 1 | 1 . . . Processor 2 | . 1 . 1 Hackware . | . . . . Protection . | . . . . Artifact . | . . . . Weapon 8 | 2 1 1 4 Energy Gun 2 | 2 . . . Energy Cannon 1 | . . 1 . Ballistic Gun 3 | . 1 . 2 Ballistic Cannon . | . . . . Launcher 2 | . . . 2 Special Weapon . | . . . . Impact Weapon . | . . . . Slashing Weapon . | . . . . Piercing Weapon . | . . . . Special Melee Weapon . | . . . . Unidentified Prototypes . | . . . . Parts Lost 6 | . . . 6 Power 1 | . . . 1 Propulsion 2 | . . . 2 Utility . | . . . . Weapon 3 | . . . 3 Highest Loss Streak 6 | . . . 6 To Critical Strikes . | . . . . Average Slot Usage (%) 87 | . 95 98 68 Engine 11 | . 14 14 4 Leg 23 | . 28 28 14 Storage 13 | . 14 14 11 Processor 14 | . 9 14 22 Energy Gun 9 | . 18 . . Energy Cannon 4 | . . 12 7 Ballistic Gun 9 | . 9 14 6 Naked Turns . | . . . . Heaviest Build 15 | 14 14 15 15 Greatest Support 20 | 20 20 20 20 Greatest Overweight (x) 1 | . . . 1 Average Overweight (x) . | . . . . Largest Inventory Capacity 8 | 8 8 8 8 Average Capacity 7 | 7 8 8 8 Most Carried 6 | 3 3 6 5 Average Carried 1 | 1 1 3 4 Final Capacity 8 | 8 8 8 8 Final Carried 6 | 1 2 6 4 Class Distribution -------------------- 100% | Mutant Dominant Class ---------------- Mutant | -10/Materials Mutant | -10/Mines Mutant | -9/Materials Resources | -11 -10 -10 -9 ----------- Run | Yrd Mat Min Mat Matter Collected 320 | 225 95 . . Remotely . | . . . . Salvage Created 238 | . 192 . 46 Parts 15 | . 8 . 7 Haulers Intercepted . | . . . . Recyclers Shooed . | . . . . Parts Field Recycled . | . . . . Retrieved Matter . | . . . . Parts Self-Destructed . | . . . . Prevented . | . . . . Kills | -11 -10 -10 -9 ------- Run | Yrd Mat Min Mat Combat Hostiles Destroyed 7 | . 3 . 4 Guns 4 | . 3 . 1 AOE 3 | . . . 3 Classes Destroyed 5 | . 2 . 3 Builder 1 | . . . 1 Watcher 2 | . 2 . . Swarmer 1 | . . . 1 Grunt 5 | . 3 . 2 Duelist 1 | . . . 1 Best Kill Streak 3 | . 2 . 3 Combat Bots Only 2 | . 1 . 2 Max Kills in Single Turn 3 | . 1 . 3 Gunslinging . | . . . . Exploded 2 | . . . 2 Melee . | . . . . Uniques/NPCs Destroyed . | . . . . Combat | -11 -10 -10 -9 -------- Run | Yrd Mat Min Mat Hostile Shots Fired 111 | . 17 . 94 Missed 25 | . 4 . 21 Damage Taken 1109 | . 164 . 945 Core 472 | . 56 . 416 Absorbed by Shields . | . . . . Core Remaining (%) 88 | 100 . 77 . Volleys Fired 42 | . 22 . 20 Largest 2 | . 2 . 2 Hottest 93 | . 90 . 93 Shots Fired 75 | . 44 . 31 Gun 50 | . 44 . 6 Cannon 15 | . . . 15 Launcher 10 | . . . 10 Special . | . . . . Kinetic 21 | . 15 . 6 Thermal 37 | . 22 . 15 Explosive 10 | . . . 10 Electromagnetic 7 | . 7 . . Robot Hit Streak 11 | . 9 . 11 Robot Miss Streak 5 | . 4 . 5 Penetration Max . | . . . . Secondary Targets . | . . . . Shots Hit Robots 35 | . 28 . 7 Core Hits 25 | . 10 . 15 Critical Kills . | . . . . Critical Parts Destroyed . | . . . . Critical Strikes 1 | . 1 . . Burn 1 | . 1 . . Melee Attacks . | . . . . Impact . | . . . . Slashing . | . . . . Piercing . | . . . . Sneak Attacks . | . . . . Combat Hostiles . | . . . . Follow-up Attacks . | . . . . Damage Inflicted 1098 | . 386 . 712 Guns 424 | . 384 . 40 Cannons 87 | . . . 87 Explosions 585 | . . . 585 Melee . | . . . . Ramming 2 | . 2 . . Kinetic 174 | . 134 . 40 Thermal 276 | . 189 . 87 Explosive 585 | . . . 585 Electromagnetic 61 | . 61 . . Impact . | . . . . Slashing . | . . . . Piercing . | . . . . Highest Corruption . | . . . . Average Corruption . | . . . . Corruption Purged . | . . . . Corruption Blocked . | . . . . Overload Shots . | . . . . Overflow Damage 19 | . . . 19 Projectiles . | . . . . Explosions 19 | . . . 19 Melee . | . . . . Knockbacks . | . . . . Impact . | . . . . Kinetic . | . . . . Secondary . | . . . . Self-Inflicted Damage 43 | . . . 43 Shots 1 | . . . 1 Rammed . | . . . . Targets Rammed 1 | . 1 . . Kicked 1 | . 1 . . Crushed . | . . . . Highest Temperature 198 | . 198 . 176 Average Temperature 83 | . 77 . 94 Received Heat Transfer 387 | . 93 . 294 Siege Activations . | . . . . Robots Corrupted . | . . . . Combat Hostiles . | . . . . Parts Fried . | . . . . Impact Corruptions . | . . . . Robots Melted . | . . . . Combat Hostiles . | . . . . Parts Melted 1 | . 1 . . Heat Transferred 814 | . 629 . 185 Parts Sabotaged . | . . . . Parts Stolen . | . . . . Parts Stripped . | . . . . Power Chain Reactions . | . . . . Alert | -11 -10 -10 -9 ------- Run | Yrd Mat Min Mat Peak Influence 125 | . 125 48 112 Initial 48 | . . 48 18 Average 36 | . 81 48 57 Maximum Alert Level . | . . . . Low Security (%) 100 | 100 100 100 100 Level 1 . | . . . . Level 2 . | . . . . Level 3 . | . . . . Level 4 . | . . . . Level 5 . | . . . . High Security . | . . . . Max Security . | . . . . Squads Dispatched 4 | . 2 . 2 Investigation 1 | . 1 . . Extermination . | . . . . Reinforcement 3 | . 1 . 2 Assault . | . . . . Garrison . | . . . . Intercept . | . . . . Searches Triggered . | . . . . Construction Impeded 1 | . . . 1 Haulers Reinforced . | . . . . Active Scanning Responses . | . . . . Cargo Convoy Interrupts . | . . . . Stealth | -11 -10 -10 -9 --------- Run | Yrd Mat Min Mat Distress Signals . | . . . . Communications Jammed . | . . . . Distress Signals . | . . . . Times Spotted 16 | . 5 . 11 Peak Tracking Total 6 | . 2 . 6 Tactical Retreats . | . . . . Traps | -11 -10 -10 -9 ------- Run | Yrd Mat Min Mat Traps Triggered 1 | . 1 . . Indirectly . | . . . . Trap Hack Attempts . | . . . . Triggered . | . . . . Disarmed . | . . . . Reprogrammed . | . . . . Reused . | . . . . Traps Extracted . | . . . . Installed . | . . . . Triggered . | . . . . Most Traps Carried 4 | . . 4 4 Machines | -11 -10 -10 -9 ---------- Run | Yrd Mat Min Mat Machines Disabled . | . . . . Max in Single Turn . | . . . . Machines Repaired . | . . . . Machines Dismantled . | . . . . Machines Sabotaged . | . . . . Overloaded Fab Kills . | . . . . Hacking | -11 -10 -10 -9 --------- Run | Yrd Mat Min Mat Machines Accessed 3 | . 2 . 1 Terminals 2 | . 1 . 1 Fabricators . | . . . . Repair Stations . | . . . . Recycling Units 1 | . 1 . . Scanalyzers . | . . . . Garrison Access . | . . . . Total Hacks 5 | . 4 . 1 Successful 2 | . 1 . 1 Failed 3 | . 3 . . Catastrophic . | . . . . Database Lockouts . | . . . . Manual . | . . . . Terminals 4 | . 3 . 1 Fabricators . | . . . . Repair Stations . | . . . . Recycling Units 1 | . 1 . . Scanalyzers . | . . . . Garrison Access . | . . . . Terminal Hacks 1 | . . . 1 Alert Level 1 | . . . 1 Fabricator Hacks . | . . . . Repair Station Hacks . | . . . . Recycling Unit Hacks 1 | . 1 . . Report Inventory 1 | . 1 . . Scanalyzer . | . . . . Garrison Access Hacks . | . . . . Unauthorized Hacks . | . . . . Terminals . | . . . . Fabricators . | . . . . Repair Stations . | . . . . Recycling Units . | . . . . Scanalyzers . | . . . . Garrison Access . | . . . . Data Cores Recovered . | . . . . Used . | . . . . Hacking Detections 1 | . 1 . . Full Trace Events 1 | . 1 . . Feedback Events . | . . . . Feedback Blocked . | . . . . Robot Schematics Acquired . | . . . . Robots Built . | . . . . Authchips . | . . . . Time . | . . . . Total Robot Build Rating . | . . . . Part Schematics Acquired . | . . . . Parts Built . | . . . . Authchips . | . . . . Time . | . . . . Total Part Build Rating . | . . . . Parts Repaired . | . . . . Time . | . . . . Parts Recycled . | . . . . Recycled Matter . | . . . . Retrieved Matter . | . . . . Retrieved Components . | . . . . Parts Scanalyzed . | . . . . Part Schematics Acquired . | . . . . Parts Damaged . | . . . . Bothacking | -11 -10 -10 -9 ------------ Run | Yrd Mat Min Mat Used RIF Installer . | . . . . Robots Hacked . | . . . . Non-combat . | . . . . Combat . | . . . . Robot Hacks Applied . | . . . . Relay Couplers Released . | . . . . Fabnet Peak Effective % . | . . . . Robots Rewired . | . . . . Allies Hacked . | . . . . Hacks Repelled . | . . . . Allies | -11 -10 -10 -9 -------- Run | Yrd Mat Min Mat Total Allies . | . . . . Largest Group . | . . . . Highest-Rated Group . | . . . . Highest-Rated Ally . | . . . . Total Orders . | . . . . Ally Attacks . | . . . . Total Damage . | . . . . Kills . | . . . . Allies Corrupted . | . . . . Allies Melted . | . . . . Intel | -11 -10 -10 -9 ------- Run | Yrd Mat Min Mat Robot Analysis Total . | . . . . Derelict Logs Recovered . | . . . . Drone Launches . | . . . . Drone Recoveries . | . . . . Exploration | -11 -10 -10 -9 ------------- Run | Yrd Mat Min Mat Turns Passed 973 | 448 260 104 161 Spaces Moved 449 | 154 148 79 68 Core 34 | 11 . . 23 Treads . | . . . . Legs 404 | 143 148 79 34 Wheels 11 | . . . 11 Hover . | . . . . Flight . | . . . . Fastest Speed 50 | 50 120 120 80 Average Speed 116 | 115 120 120 106 Slowest Speed 120 | 120 120 120 120 Overloaded Moves . | . . . . Propulsion Burnouts . | . . . . Robots Hopped . | . . . . Cave-ins Triggered . | . . . . Exploration Rate (%) 18 | 12 29 29 5 Regions Visited 3 Branch Regions 1 Pre-discovered Areas . | . . . . Known Exits Taken . | . . . . Unknown Exits Taken 3 | 1 1 1 . Scrap Searched . | . . . . Spaces Dug . | . . . . Terrain Destroyed 88 | . . . 88 Melee . | . . . . Projectile . | . . . . AOE 88 | . . . 88 Terrain Rammed . | . . . . Walls Destroyed . | . . . . Machines Disabled . | . . . . Actions | -11 -10 -10 -9 --------- Run | Yrd Mat Min Mat Total 825 | 425 186 89 125 Wait 297 | 259 8 3 27 Move 446 | 153 147 78 68 Hop . | . . . . Pick Up 18 | 7 4 5 2 Fast Attach . | . . . . Attach 12 | 6 1 1 4 Detach 2 | . . 1 1 Swap 3 | . 1 . 2 Drop 4 | . 2 1 1 Fire 42 | . 22 . 20 Melee . | . . . . Ram . | . . . . Kick 1 | . 1 . . Crush . | . . . . Escape Stasis . | . . . . Rewire . | . . . . Trap . | . . . . Miscellaneous . | . . . . Route ------- -11/Scrapyard -10/Materials -10/Mines -9/Materials History --------- Turn | Location | Event 15 | -11/Scrapyard | Discovered new exit (range 16) 449 | -11/Scrapyard | Entered Materials 450 | -10/Materials | Build established: Mutant 658 | -10/Materials | Discovered new exit (range 18) 709 | -10/Materials | Entered Mines 726 | -10/Mines | Received a Rocket Launcher from a helpful Derelict 749 | -10/Mines | Met a Derelict bent on vengeance 763 | -10/Mines | Found a hidden stash of uninstalled traps 802 | -10/Mines | Discovered new exit (range 8) 813 | -10/Mines | Entered Materials 813 | -9/Materials | Evolved 2 slots: Utility x2 927 | -9/Materials | Core integrity fell below 50% 964 | -9/Materials | Core integrity fell below 20% 969 | -9/Materials | Lost 6 parts (1p2n3w) 974 | -9/Materials | Destroyed by Y-45 Defender with Heavy Assault Rifle Last Messages --------------- U-05 Engineer builds a Wall. The unstable cave ceiling collapses. U-05 Engineer builds a Wall. The unstable cave ceiling collapses. U-05 Engineer builds a Wall. The unstable cave ceiling collapses. Connecting with Terminal... Current location identified: Materials >>Alert(Check) Current Alert Level: Low Security The unstable cave ceiling collapses. U-05 Engineer lays Concrete. Acquired Wheel. U-05 Engineer lays Concrete. U-05 Engineer builds a Wall. U-05 Engineer lays Concrete. Acquired Lgt. Ion Engine. U-05 Engineer lays Concrete. U-05 Engineer builds a Wall. U-05 Engineer destroyed. Map ----- +----------------------------------------------------+ | ?????????????????????????????????????????????????? | | ?????????????????????????????????????????????????? | | ?????????????????????????????????????????????????? | | ?????????????????????????????????????????????????? | | ?????????????????????????????????????????????????? | | ?????????????????????????????????????????????????? | | ?????????????????????????????????????????????????? | | ?????????????????????????????????????????????????? | | ????????????????????????? #?????????????????????? | | ????????????????????????? ##??????????????????? | | ????????????????????????? ???????????????????? | | ???????????????? ???????? Y ???????????????????? | | ??????????????? ???????? ????????????????????? | | ?????????????? ????????? ????????????????????? | | ????????#####? ????????? #????????????????????? | | ????????# # ?????????? #????????????????????? | | ???????## ##???????# #????????????????????? | | ???????# # #???????# #????????????????????? | | ???????## # #??###??# #????????????????????? | | ??????## #### #### #????????????????????? | | ?????## # ## ## ##???????????????????? | | ?????# ########## ###a #???????????????????? | | ###### ss%g #???????????????????? | | % ! w %!s= +???????????????????? | | # = = #???????????????????? | | """ ########## @ #???????????????????? | | """ # #?????### ###???????????????????? | | """ # # "" #???????? #?????????????????????? | | # # "T #?????????#?????????????????????? | | ####### # "" #???????????????????????????????? | | ??????# # #???????????????????????????????? | | ??????# # #???????????????????????????????? | | ??????# ########???????????????????????????????? | | ??????# #??????????????????????????????????????? | | ??????# #??????????????????????????????????????? | | ??????# #??????????????????????????????????????? | | ??????#####??????????????????????????????????????? | | ?????????????????????????????????????????????????? | | ?????????????????????????????????????????????????? | | ?????????????????????????????????????????????????? | | ?????????????????????????????????????????????????? | | ?????????????????????????????????????????????????? | | ?????????????????????????????????????????????????? | | ?????????????????????????????????????????????????? | | ?????????????????????????????????????????????????? | | ?????????????????????????????????????????????????? | | ?????????????????????????????????????????????????? | | ?????????????????????????????????????????????????? | | ?????????????????????????????????????????????????? | | ?????????????????????????????????????????????????? | +----------------------------------------------------+ Best States ------------- Heat Dissipation 28 Energy Generation 10 Energy Capacity 250 Matter Stores 300 Matter Capacity 300 Sight Range 18 Terrain Scan Density 10 Evasion (%) 55 Item Schematics ----------------- None Robot Schematics ------------------ None Fabricated ------------ Nothing Alien Tech Used ----------------- None Achievements -------------- None Challenges ------------ None Game ------ Seed EncryptedThermoelectricFalx Manual? 0 Play Time 00:11:24 Cumulative 2.1 hours Start 2024.04.01 @ 18:35:39 End 2024.04.01 @ 18:52:54 Sessions 1 Manual Loads 0 Difficulty Rogue Special Mode None Game No. 3 Rogue 3 Adventurer 0 Explorer 0 Win Type - Total 0 Types 0/0/0/0/0/0/0/0/0 Lore% 4 Gallery% 8 Achievement% 8 Wizard Run 0 Options --------- Layout 2 ASCII 0 Keyboard 0 Movement Numpad Keybinds 0 Fullscreen 1 Font 24/Smallcaps Map View 50x44 Zoom Use 0% Tactical HUD 0 Map Filters NONE Filters NONE Steam 1 RUN: bf3efc6f-8a3e-401a-ab7e-79466482bb62